fUST/lending_fUST_20250812
["ID","MTS","AMOUNT","RATE_DAILY","PERIOD"]
[378763616,1755005447709,-699.79,0.00018031,2]
[378763617,1755005447720,-603.51,0.00018031,2]
[378763618,1755005447730,-460.0,0.00018031,2]
[378763619,1755005447740,-460.0,0.00018031,2]
[378763620,1755005447754,-460.0,0.00018031,2]
[378763621,1755005447764,-705.89,0.00018031,2]
[378763622,1755005447773,-460.0,0.00018031,2]
[378763623,1755005447783,-460.0,0.00018031,2]
[378763624,1755005447793,-460.0,0.00018031,2]
[378763625,1755005447803,-460.0,0.00018031,2]
[378763626,1755005447813,-619.06,0.00018031,2]
[378763627,1755005447823,-460.0,0.00018031,2]
[378763628,1755005447833,-715.97,0.00018031,2]
[378763629,1755005447842,-589.34,0.00018031,2]
[378763630,1755005447852,-474.62,0.00018031,2]
[378763631,1755005447861,-460.0,0.00018031,2]
[378763632,1755005447871,-460.0,0.00018031,2]
[378763633,1755005447880,-460.0,0.00018031,2]
[378763634,1755005447890,-460.0,0.00018031,2]
[378763635,1755005447899,-565.27,0.00018031,2]
[378763636,1755005447909,-460.0,0.00018031,2]
[378763637,1755005447918,-460.0,0.00018031,2]
[378763638,1755005447927,-460.0,0.00018031,2]
[378763639,1755005447936,-460.0,0.00018031,2]
[378763640,1755005447945,-572.93,0.00018031,2]
[378763641,1755005447955,-529.93,0.00018031,2]
[378763642,1755005447966,-460.0,0.00018031,2]
[378763643,1755005447976,-460.0,0.00018031,2]
[378763644,1755005447987,-460.0,0.00018031,2]
[378763645,1755005448002,-460.0,0.00018031,2]
[378763646,1755005448013,-460.0,0.00018031,2]
[378763647,1755005448023,-948.15,0.00018031,2]
[378763648,1755005448033,-460.0,0.00018031,2]
[378763649,1755005448043,-460.0,0.00018031,2]
[378763650,1755005448053,-460.0,0.00018031,2]
[378763651,1755005448063,-460.0,0.00018031,2]
[378763652,1755005448073,-460.0,0.00018031,2]
[378763653,1755005448084,-460.0,0.00018031,2]
[378763654,1755005448094,-833.09,0.00018031,2]
[378763655,1755005448104,-1138.89,0.00018031,2]
[378763656,1755005448114,-460.0,0.00018031,2]
[378763657,1755005448124,-633.72,0.00018031,2]
[378763658,1755005448134,-460.0,0.00018031,2]
[378763659,1755005448145,-460.0,0.00018031,2]
[378763660,1755005448155,-460.0,0.00018031,2]
[378763661,1755005448166,-460.0,0.00018031,2]
[378763662,1755005448176,-1454.72,0.00018031,2]
[378763663,1755005448187,-460.0,0.00018031,2]
[378763664,1755005448197,-652.63,0.00018031,2]
[378763665,1755005448209,-460.0,0.00018031,2]
[378763666,1755005448220,-587.45,0.00018031,2]
[378763667,1755005448231,-2799.71,0.00018031,2]
[378763668,1755005448242,-894.93,0.00018031,2]
[378763669,1755005448259,-462.05535552,0.00018031,2]
[378763670,1755005448269,-460.0,0.00018031,2]
[378763671,1755005448280,-482.73,0.00018031,2]
[378763672,1755005448291,-476.50718304,0.00018031,2]
[378763673,1755005448303,-460.0,0.00018031,2]
[378763674,1755005448313,-1355.02,0.00018031,2]
[378763675,1755005448324,-1552.47,0.00018031,2]
[378763676,1755005448335,-1260.1,0.00018031,2]
[378763677,1755005448345,-460.0,0.00018031,2]
[378763678,1755005448356,-2110.79,0.00018031,2]
[378763679,1755005448367,-460.0,0.00018031,2]
[378763680,1755005448379,-775.37,0.00018031,2]
[378763681,1755005448390,-460.0,0.00018031,2]
[378763682,1755005448401,-1027.21,0.00018031,2]
[378763683,1755005448414,-460.0,0.00018031,2]
[378763684,1755005448425,-1248.82,0.00018031,2]
[378763685,1755005448436,-460.0,0.00018031,2]
[378763686,1755005448446,-460.0,0.00018031,2]
[378763687,1755005448457,-747.69,0.00018031,2]
[378763688,1755005448468,-460.0,0.00018031,2]
[378763689,1755005448479,-460.0,0.00018031,2]
[378763690,1755005448490,-460.0,0.00018031,2]
[378763691,1755005448506,-1191.85,0.00018031,2]
[378763692,1755005448517,-151.0,0.00018032,2]
[378763693,1755005448528,-159.5875323,0.00018032,2]
[378763694,1755005448539,-460.0,0.00018032,2]
[378763695,1755005448550,-460.0,0.00018032,2]
[378763696,1755005448560,-460.0,0.00018032,2]
[378763697,1755005448570,-477.54973198,0.00018033,2]
[378763698,1755005448584,-460.0,0.00018033,2]
[378763699,1755005448594,-460.0,0.00018033,2]
[378763700,1755005448604,-462.18938033,0.00018033,2]
[378763701,1755005448619,-460.0,0.00018033,2]
[378763702,1755005448629,-465.68542733,0.00018033,2]
[378763703,1755005448639,-460.0,0.00018033,2]
[378763704,1755005448649,-460.0,0.00018033,2]
[378763705,1755005448663,-460.0,0.00018033,2]
[378763706,1755005448673,-460.0,0.00018033,2]
[378763707,1755005448684,-460.0,0.00018033,2]
[378763708,1755005448695,-460.0,0.00018033,2]
[378763709,1755005448706,-460.0,0.00018033,2]
[378763710,1755005448716,-460.0,0.00018033,2]
[378763711,1755005448727,-460.0,0.00018033,2]
[378763712,1755005448737,-464.74189389,0.00018033,2]
[378763713,1755005448751,-460.0,0.00018033,2]
[378763714,1755005448762,-460.0,0.00018033,2]
[378763715,1755005448772,-460.0,0.00018033,2]
[378763716,1755005448782,-460.0,0.00018033,2]
[378763717,1755005448792,-460.0,0.00018033,2]
[378763718,1755005448802,-742.24,0.00018033,2]
[378763719,1755005448811,-460.0,0.00018033,2]
[378763720,1755005448821,-460.0,0.00018033,2]
[378763721,1755005448831,-460.0,0.00018033,2]
[378763722,1755005448841,-460.0,0.00018033,2]
[378763723,1755005448851,-460.0,0.00018033,2]
[378763724,1755005448860,-460.0,0.00018033,2]
[378763725,1755005448870,-460.0,0.00018033,2]
[378763726,1755005448880,-460.0,0.00018033,2]
[378763727,1755005448891,-460.0,0.00018033,2]
[378763728,1755005448901,-460.0,0.00018033,2]
[378763729,1755005448910,-460.0,0.00018033,2]
[378763730,1755005448921,-460.0,0.00018033,2]
[378763731,1755005448931,-467.01581858,0.00018033,2]
[378763732,1755005448941,-290.57340762,0.00018033,2]
[378763733,1755005448951,-460.0,0.00018033,2]
[378763734,1755005448961,-151.0,0.00018033,2]
[378763735,1755005448971,-242.37,0.00018033,2]
[378763736,1755005448981,-151.0,0.00018033,2]
[378763737,1755005448991,-151.0,0.00018033,2]
[378763738,1755005449005,-460.0,0.00018033,2]
[378763739,1755005449016,-151.0,0.00018033,2]
[378763740,1755005449026,-460.0,0.00018033,2]
[378763741,1755005449036,-151.0,0.00018033,2]
[378763742,1755005449046,-460.0,0.00018033,2]
[378763743,1755005449056,-460.0,0.00018033,2]
[378763744,1755005449066,-151.0,0.00018033,2]
[378763745,1755005449076,-151.0,0.00018033,2]
[378763746,1755005449086,-151.0,0.00018033,2]
[378763747,1755005449095,-460.0,0.00018033,2]
[378763748,1755005449105,-460.0,0.00018033,2]
[378763749,1755005449115,-470.07880782,0.00018033,2]
[378763750,1755005449126,-151.481524,0.00018033,2]
[378763751,1755005449136,-243.369866,0.00018033,2]
[378763752,1755005449146,-243.369866,0.00018033,2]
[378763753,1755005449156,-460.0,0.00018033,2]
[378763754,1755005449168,-460.0,0.00018033,2]
[378763755,1755005449179,-460.0,0.00018033,2]
[378763756,1755005449191,-151.0,0.00018033,2]
[378763757,1755005449202,-854.22,0.00018033,2]
[378763758,1755005449211,-151.0,0.00018033,2]
[378763759,1755005449222,-460.0,0.00018033,2]
[378763760,1755005449232,-460.0,0.00018033,2]
[378763761,1755005449242,-460.0,0.00018033,2]
[378763762,1755005449258,-462.79101781,0.00018033,2]
[378763763,1755005449268,-151.0,0.00018033,2]
[378763764,1755005449278,-460.0,0.00018033,2]
[378763765,1755005449288,-460.0,0.00018033,2]
[378763766,1755005449298,-460.0,0.00018033,2]
[378763767,1755005449308,-480.77872443,0.00018033,2]
[378763768,1755005449318,-460.0,0.00018033,2]
[378763769,1755005449329,-460.0,0.00018033,2]
[378763770,1755005449340,-151.0,0.00018033,2]
[378763771,1755005449350,-283.61923339,0.00018033,2]
[378763772,1755005449361,-460.0,0.00018033,2]
[378763773,1755005449370,-151.0,0.00018033,2]
[378763774,1755005449381,-151.0,0.00018033,2]
[378763775,1755005449391,-460.0,0.00018033,2]
[378763776,1755005449401,-393.50303492,0.00018033,2]
[378763777,1755005449411,-460.0,0.00018033,2]
[378763778,1755005449422,-460.0,0.00018033,2]
[378763779,1755005449433,-465.47182676,0.00018033,2]
[378763780,1755005449444,-460.0,0.00018033,2]
[378763781,1755005449455,-151.0,0.00018033,2]
[378763782,1755005449465,-464.84206941,0.00018033,2]
[378763783,1755005449476,-219.946368,0.00018033,2]
[378763784,1755005449487,-460.0,0.00018033,2]
[378763785,1755005449497,-219.946368,0.00018033,2]
[378763786,1755005449513,-460.0,0.00018033,2]
[378763787,1755005449523,-460.0,0.00018033,2]
[378763788,1755005449533,-460.0,0.00018033,2]
[378763789,1755005449543,-151.0,0.00018033,2]
[378763790,1755005449553,-460.0,0.00018033,2]
[378763791,1755005449563,-468.58079697,0.00018033,2]
[378763792,1755005449572,-460.0,0.00018033,2]
[378763793,1755005449582,-151.0,0.00018033,2]
[378763794,1755005449592,-3207.857138,0.00018033,2]
[378763795,1755005449601,-460.0,0.00018033,2]
[378763796,1755005449613,-3207.857138,0.00018033,2]
[378763797,1755005449624,-460.0,0.00018033,2]
[378763798,1755005449633,-151.0,0.00018033,2]
[378763799,1755005449642,-407.08911212,0.00018033,2]
[378763800,1755005449651,-151.0,0.00018033,2]
[378763801,1755005449663,-460.0,0.00018033,2]
[378763802,1755005449672,-478.14429707,0.00018033,2]
[378763803,1755005449681,-460.0,0.00018033,2]
[378763804,1755005449690,-460.0,0.00018033,2]
[378763805,1755005449701,-460.0,0.00018033,2]
[378763806,1755005449711,-472.42620289,0.00018033,2]
[378763807,1755005449720,-205.31208963,0.00018033,2]
[378763808,1755005449729,-460.0,0.00018033,2]
[378763809,1755005449739,-460.0,0.00018033,2]
[378763810,1755005449751,-338.74984126,0.00018033,2]
[378763811,1755005449760,-460.0,0.00018033,2]
[378763812,1755005449770,-460.0,0.00018033,2]
[378763813,1755005449780,-460.0,0.00018033,2]
[378763814,1755005449790,-460.0,0.00018033,2]
[378763815,1755005449800,-151.0,0.00018033,2]
[378763816,1755005449809,-460.0,0.00018033,2]
[378763817,1755005449820,-151.0,0.00018033,2]
[378763818,1755005449829,-151.0,0.00018033,2]
[378763819,1755005449838,-460.0,0.00018033,2]
[378763820,1755005449847,-151.0,0.00018033,2]
[378763821,1755005449856,-460.0,0.00018033,2]
[378763822,1755005449864,-460.0,0.00018033,2]
[378763823,1755005449874,-675.31,0.00018033,2]
[378763824,1755005449883,-460.0,0.00018033,2]
[378763825,1755005449892,-460.0,0.00018033,2]
[378763826,1755005449901,-460.0,0.00018033,2]
[378763827,1755005449910,-151.0,0.00018033,2]
[378763828,1755005449919,-303.27569574,0.00018033,2]
[378763829,1755005449928,-818.72,0.00018033,2]
[378763830,1755005449937,-460.0,0.00018033,2]
[378763831,1755005449947,-460.0,0.00018033,2]
[378763832,1755005449956,-460.0,0.00018033,2]
[378763833,1755005449966,-460.0,0.00018033,2]
[378763834,1755005449976,-460.0,0.00018033,2]
[378763835,1755005449986,-227.23214898,0.00018033,2]
[378763836,1755005449995,-151.0,0.00018033,2]
[378763837,1755005450007,-460.0,0.00018033,2]
[378763838,1755005450017,-556.24711558,0.00018033,2]
[378763839,1755005450026,-460.0,0.00018033,2]
[378763840,1755005450036,-460.0,0.00018033,2]
[378763841,1755005450045,-460.0,0.00018033,2]
[378763842,1755005450055,-460.0,0.00018033,2]
[378763843,1755005450064,-151.0,0.00018033,2]
[378763844,1755005450073,-460.0,0.00018033,2]
[378763845,1755005450083,-460.0,0.00018033,2]
[378763846,1755005450093,-384.21009258,0.00018033,2]
[378763847,1755005450102,-952.152247,0.00018033,2]
[378763848,1755005450111,-469.48664317,0.00018033,2]
[378763849,1755005450121,-460.0,0.00018033,2]
[378763850,1755005450130,-460.0,0.00018033,2]
[378763851,1755005450140,-460.0,0.00018033,2]
[378763852,1755005450149,-952.152247,0.00018033,2]
[378763853,1755005450159,-151.0,0.00018033,2]
[378763854,1755005450168,-461.77145001,0.00018033,2]
[378763855,1755005450178,-460.0,0.00018033,2]
[378763856,1755005450188,-460.0,0.00018033,2]
[378763857,1755005450197,-460.0,0.00018033,2]
[378763858,1755005450207,-269.67399361,0.00018033,2]
[378763859,1755005450216,-151.0,0.00018033,2]
[378763860,1755005450225,-460.0,0.00018033,2]
[378763861,1755005450235,-460.0,0.00018033,2]
[378763862,1755005450244,-151.0,0.00018033,2]
[378763863,1755005450256,-535.93224199,0.00018033,2]
[378763864,1755005450265,-463.29482694,0.00018033,2]
[378763865,1755005450275,-460.0,0.00018033,2]
[378763866,1755005450285,-460.0,0.00018033,2]
[378763867,1755005450295,-151.0,0.00018033,2]
[378763868,1755005450305,-460.0,0.00018033,2]
[378763869,1755005450315,-151.0,0.00018033,2]
[378763870,1755005450325,-463.17241273,0.00018033,2]
[378763871,1755005450335,-460.0,0.00018033,2]
[378763872,1755005450344,-460.0,0.00018033,2]
[378763873,1755005450354,-557.92,0.00018033,2]
[378763874,1755005450363,-471.17272675,0.00018033,2]
[378763875,1755005450373,-804.23,0.00018033,2]
[378763876,1755005450383,-460.0,0.00018033,2]
[378763877,1755005450393,-684.84,0.00018033,2]
[378763878,1755005450403,-151.0,0.00018033,2]
[378763879,1755005450413,-460.0,0.00018033,2]
[378763880,1755005450422,-460.0,0.00018033,2]
[378763881,1755005450432,-461.10152673,0.00018033,2]
[378763882,1755005450442,-460.0,0.00018033,2]
[378763883,1755005450452,-460.0,0.00018033,2]
[378763884,1755005450460,-381.6638694,0.00018033,2]
[378763885,1755005450470,-433.786343,0.00018033,2]
[378763886,1755005450480,-460.0,0.00018033,2]
[378763887,1755005450490,-460.0,0.00018033,2]
[378763888,1755005450503,-433.786343,0.00018033,2]
[378763889,1755005450512,-405.08676828,0.00018033,2]
[378763890,1755005450521,-181.146924,0.00018033,2]
[378763891,1755005450669,-460.0,0.00018033,2]
[378763892,1755005450681,-460.0,0.00018033,2]
[378763893,1755005450691,-460.0,0.00018033,2]
[378763894,1755005450700,-460.0,0.00018033,2]
[378763895,1755005450710,-378.351434,0.00018033,2]
[378763896,1755005450720,-181.146924,0.00018033,2]
[378763897,1755005450730,-460.0,0.00018033,2]
[378763898,1755005450740,-378.351434,0.00018033,2]
[378763899,1755005450752,-151.0,0.00018033,2]
[378763900,1755005450761,-460.0,0.00018033,2]
[378763901,1755005450771,-460.0,0.00018033,2]
[378763902,1755005450781,-460.0,0.00018033,2]
[378763903,1755005450791,-500.0,0.00018034,2]
[378763904,1755005450800,-203.47653186,0.00018034,2]
[378763905,1755005450810,-172.31713751,0.00018037,2]
[378763906,1755005450820,-3620.14214527,0.00018063,2]
[378763907,1755005450830,-500.0,0.00018073,2]
[378763908,1755005450840,-349.78746667,0.00018073,2]
[378763909,1755005450850,-500.0,0.00018073,2]
[378763910,1755005450859,-500.0,0.00018073,2]
[378763911,1755005450869,-500.0,0.00018073,2]
[378763912,1755005450878,-500.0,0.00018073,2]
[378763913,1755005450888,-500.0,0.00018073,2]
[378763914,1755005450897,-500.0,0.00018073,2]
[378763915,1755005450907,-500.0,0.00018073,2]
[378763916,1755005450916,-500.0,0.00018073,2]
[378763917,1755005450926,-500.0,0.00018073,2]
[378763918,1755005450935,-500.0,0.00018073,2]
[378763919,1755005450945,-500.0,0.00018073,2]
[378763920,1755005450954,-500.0,0.00018073,2]
[378763921,1755005450964,-501.30339639,0.00018073,2]
[378763922,1755005450973,-500.0,0.00018073,2]
[378763923,1755005450982,-500.0,0.00018073,2]
[378763924,1755005450991,-323.01291479,0.00018073,2]
[378763925,1755005451006,-571.59741253,0.00018073,2]
[378763926,1755005451017,-500.0,0.00018073,2]
[378763927,1755005451026,-500.0,0.00018073,2]
[378763928,1755005451036,-500.0,0.00018073,2]
[378763929,1755005451046,-500.0,0.00018073,2]
[378763930,1755005451056,-500.0,0.00018073,2]
[378763931,1755005451066,-500.0,0.00018073,2]
[378763932,1755005451076,-433.30891369,0.00018073,2]
[378763933,1755005451086,-500.0,0.00018073,2]
[378763934,1755005451096,-500.0,0.00018073,2]
[378763935,1755005451106,-500.0,0.00018073,2]
[378763936,1755005451116,-500.0,0.00018073,2]
[378763937,1755005451126,-500.0,0.00018073,2]
[378763938,1755005451135,-500.0,0.00018073,2]
[378763939,1755005451145,-500.0,0.00018073,2]
[378763940,1755005451155,-500.0,0.00018073,2]
[378763941,1755005451164,-500.0,0.00018073,2]
[378763942,1755005451173,-501.32411645,0.00018073,2]
[378763943,1755005451183,-154.46246951,0.00018073,2]
[378763944,1755005451193,-500.0,0.00018073,2]
[378763945,1755005451202,-500.0,0.00018073,2]
[378763946,1755005451212,-500.45548213,0.00018073,2]
[378763947,1755005451221,-502.82370544,0.00018073,2]
[378763948,1755005451231,-500.0,0.00018073,2]
[378763949,1755005451241,-500.0,0.00018073,2]
[378763950,1755005451251,-500.0,0.00018073,2]
[378763951,1755005451262,-621.67044864,0.00018073,2]
[378763952,1755005451272,-500.0,0.00018073,2]
[378763953,1755005451282,-500.0,0.00018073,2]
[378763954,1755005451292,-500.0,0.00018073,2]
[378763955,1755005451301,-500.0,0.00018073,2]
[378763956,1755005451311,-500.0,0.00018073,2]
[378763957,1755005451321,-500.0,0.00018073,2]
[378763958,1755005451331,-500.0,0.00018073,2]
[378763959,1755005451340,-502.07243738,0.00018073,2]
[378763960,1755005451351,-151.0,0.000181,2]
[378763961,1755005451361,-151.0,0.000181,2]
[378763962,1755005451371,-151.0,0.000181,2]
[378763963,1755005451382,-151.0,0.000181,2]
[378763964,1755005451392,-151.0,0.000181,2]
[378763965,1755005451401,-200.0,0.00018101,2]
[378763966,1755005451411,-200.0,0.00018101,2]
[378763967,1755005451422,-200.0,0.00018101,2]
[378763968,1755005451431,-200.0,0.00018101,2]
[378763969,1755005451441,-152.418429,0.0001812,2]
[378763970,1755005451451,-151.0,0.0001812,2]
[378763971,1755005451461,-151.0,0.0001812,2]
[378763972,1755005451470,-151.0,0.0001812,2]
[378763973,1755005451480,-300.0,0.0001812,2]
[378763974,1755005451490,-151.0,0.0001812,2]
[378763975,1755005451505,-460.0,0.00018129,2]
[378763976,1755005451515,-460.0,0.00018129,2]
[378763977,1755005451525,-464.10346704,0.00018129,2]
[378763978,1755005451535,-460.0,0.00018129,2]
[378763979,1755005451544,-702.14,0.00018129,2]
[378763980,1755005451555,-460.0,0.00018129,2]
[378763981,1755005451565,-460.0,0.00018129,2]
[378763982,1755005451575,-460.0,0.00018129,2]
[378763983,1755005451586,-460.0,0.00018129,2]
[378763984,1755005451596,-460.0,0.00018129,2]
[378763985,1755005451606,-460.0,0.00018129,2]
[378763986,1755005451620,-460.0,0.00018129,2]
[378763987,1755005451629,-467.90189732,0.00018129,2]
[378763988,1755005451639,-460.0,0.00018129,2]
[378763989,1755005451649,-460.0,0.00018129,2]
[378763990,1755005451659,-460.0,0.00018129,2]
[378763991,1755005451668,-509.5,0.00018129,2]
[378763992,1755005451678,-460.0,0.00018129,2]
[378763993,1755005451688,-460.0,0.00018129,2]
[378763994,1755005451699,-465.49062905,0.00018129,2]
[378763995,1755005451709,-460.0,0.00018129,2]
[378763996,1755005451719,-460.0,0.00018129,2]
[378763997,1755005451729,-2211.94,0.00018129,2]
[378763998,1755005451739,-233.62589241,0.00018129,2]
[378763999,1755005451750,-460.0,0.00018129,2]
[378764000,1755005451762,-460.0,0.00018129,2]
[378764001,1755005451772,-151.0,0.00018133,2]
[378764002,1755005451781,-505.41463105,0.00018133,2]
[378764003,1755005451792,-500.0,0.00018133,2]
[378764004,1755005451802,-151.0,0.00018133,2]
[378764005,1755005451811,-500.0,0.00018133,2]
[378764006,1755005451821,-500.0,0.00018133,2]
[378764007,1755005451831,-500.0,0.00018133,2]
[378764008,1755005451840,-151.0,0.00018133,2]
[378764009,1755005451850,-151.0,0.00018133,2]
[378764010,1755005451859,-151.0,0.00018133,2]
[378764011,1755005451869,-151.0,0.00018133,2]
[378764012,1755005451879,-151.0,0.00018133,2]
[378764013,1755005451888,-151.0,0.00018133,2]
[378764014,1755005451898,-277.581295,0.00018133,2]
[378764015,1755005451907,-151.0,0.00018133,2]
[378764016,1755005451917,-243.369866,0.00018133,2]
[378764017,1755005451927,-243.369866,0.00018133,2]
[378764018,1755005451936,-151.0,0.00018133,2]
[378764019,1755005451946,-151.0,0.00018133,2]
[378764020,1755005451955,-151.0,0.00018133,2]
[378764021,1755005451965,-151.0,0.00018133,2]
[378764022,1755005451974,-151.0,0.00018133,2]
[378764023,1755005451984,-219.946368,0.00018133,2]
[378764024,1755005451995,-219.946368,0.00018133,2]
[378764025,1755005452010,-151.0,0.00018133,2]
[378764026,1755005452019,-278.767052,0.00018136,2]
[378764027,1755005452029,-261.964973,0.00018136,2]
[378764028,1755005452038,-151.0,0.00018136,2]
[378764029,1755005452047,-460.0,0.00018137,2]
[378764030,1755005452058,-460.0290061,0.00018137,2]
[378764031,1755005452067,-151.0,0.00018137,2]
[378764032,1755005452076,-151.0,0.00018137,2]
[378764033,1755005452086,-151.0,0.00018137,2]
[378764034,1755005452096,-151.0,0.00018137,2]
[378764035,1755005452106,-151.0,0.00018137,2]
[378764036,1755005452116,-151.0,0.00018137,2]
[378764037,1755005452126,-238.350241,0.00018137,2]
[378764038,1755005452135,-151.0,0.00018137,2]
[378764039,1755005452145,-151.0,0.00018137,2]
[378764040,1755005452155,-151.85896,0.00018137,2]
[378764041,1755005452171,-151.0,0.00018137,2]
[378764042,1755005452181,-151.0,0.00018137,2]
[378764043,1755005452191,-3207.857138,0.00018137,2]
[378764044,1755005452201,-3207.857138,0.00018137,2]
[378764045,1755005452211,-151.0,0.00018137,2]
[378764046,1755005452221,-151.0,0.00018137,2]
[378764047,1755005452230,-151.0,0.00018137,2]
[378764048,1755005452239,-151.0,0.00018137,2]
[378764049,1755005452254,-151.0,0.00018137,2]
[378764050,1755005452264,-270.963593,0.00018137,2]
[378764051,1755005452273,-151.0,0.00018137,2]
[378764052,1755005452283,-151.0,0.00018137,2]
[378764053,1755005452293,-151.0,0.00018137,2]
[378764054,1755005452303,-952.152247,0.00018137,2]
[378764055,1755005452313,-952.152247,0.00018137,2]
[378764056,1755005452322,-151.0,0.00018137,2]
[378764057,1755005452331,-151.0,0.00018137,2]
[378764058,1755005452341,-151.46679,0.00018137,2]
[378764059,1755005452351,-151.0,0.00018137,2]
[378764060,1755005452360,-151.0,0.00018137,2]
[378764061,1755005452369,-153.650219,0.00018137,2]
[378764062,1755005452379,-433.786343,0.00018137,2]
[378764063,1755005452388,-433.786343,0.00018137,2]
[378764064,1755005452398,-181.146924,0.00018137,2]
[378764065,1755005452407,-378.351434,0.00018137,2]
[378764066,1755005452417,-181.146924,0.00018137,2]
[378764067,1755005452426,-378.351434,0.00018137,2]
[378764068,1755005452435,-500.0,0.00018173,2]
[378764069,1755005452445,-500.0,0.00018173,2]
[378764070,1755005452454,-459.83421577,0.00018173,2]
[378764071,1755005452464,-500.0,0.00018173,2]
[378764072,1755005452473,-500.0,0.00018173,2]
[378764073,1755005452483,-3620.14214527,0.00018198,2]
[378764074,1755005452493,-151.0,0.000182,2]
[378764075,1755005452508,-151.0,0.000182,2]
[378764076,1755005452518,-460.0,0.00018295,2]
[378764077,1755005452527,-200.22,0.00018295,2]
[378764078,1755005452536,-460.0,0.00018295,2]
[378764079,1755005452546,-2984.66,0.00018296,2]
[378764080,1755005452556,-460.0,0.00018296,2]
[378764081,1755005452565,-811.61,0.00018296,2]
[378764082,1755005452574,-460.0,0.00018296,2]
[378764083,1755005452584,-506.91,0.00018296,2]
[378764084,1755005452594,-460.0,0.00018296,2]
[378764085,1755005452604,-480.47,0.00018296,2]
[378764086,1755005452615,-460.0,0.00018296,2]
[378764087,1755005452624,-497.88,0.00018296,2]
[378764088,1755005452636,-604.82,0.00018296,2]
[378764089,1755005452647,-4366.05,0.00018296,2]
[378764090,1755005452656,-460.0,0.00018296,2]
[378764091,1755005452667,-4278.72,0.00018296,2]
[378764092,1755005452677,-460.0,0.00018296,2]
[378764093,1755005452687,-460.0,0.00018296,2]
[378764094,1755005452697,-460.0,0.00018296,2]
[378764095,1755005452707,-2199.99,0.00018296,2]
[378764096,1755005452717,-7997.19,0.00018296,2]
[378764097,1755005452727,-765.83,0.00018296,2]
[378764098,1755005452737,-2255.45,0.00018296,2]
[378764099,1755005452746,-460.0,0.00018296,2]
[378764100,1755005452760,-151.0,0.00018296,2]
[378764101,1755005452770,-703.69,0.00018296,2]
[378764102,1755005452779,-460.0,0.00018296,2]
[378764103,1755005452789,-460.0,0.00018296,2]
[378764104,1755005452799,-2663.14,0.00018298,2]
[378764105,1755005452809,-175.16684187,0.00018298,2]
[378764106,1755005452819,-460.0,0.00018298,2]
[378764107,1755005452829,-460.0,0.00018298,2]
[378764108,1755005452838,-4208.04,0.00018298,2]
[378764109,1755005452848,-706.14,0.00018298,2]
[378764110,1755005452857,-460.0,0.00018298,2]
[378764111,1755005452867,-1539.46,0.00018298,2]
[378764112,1755005452876,-1419.39,0.00018298,2]
[378764113,1755005452885,-475.88235064,0.00018298,2]
[378764114,1755005452895,-460.0,0.00018298,2]
[378764115,1755005452904,-839.14,0.00018298,2]